[Event "*** SCC Grand Prix: Titled Tuesday Blitz"]
[Site "Chess.com"]
[Date "2020.09.08"]
[Round "9"]
[White "Harsha_Bharathakoti"]
[Black "SergeyKarjakin"]
[Result "0-1"]
[WhiteElo "2800"]
[BlackElo "2963"]
[TimeControl "180+1"]
[EndTime "11:47:23 PDT"]
[Termination "SergeyKarjakin won by resignation"]

1. d4 {[%clk 0:03:00.9]} 1... Nf6 {[%clk 0:03:00]} 2. c4 {[%clk 0:02:54.5]} 2...
e6 {[%clk 0:03:00.1]} 3. Nf3 {[%clk 0:02:43.2]} 3... b6 {[%clk 0:02:57.7]} 4. g3
{[%clk 0:02:43.1]} 4... Bb4+ {[%clk 0:02:56.8]} 5. Bd2 {[%clk 0:02:42.4]} 5...
c5 {[%clk 0:02:56.6]} 6. Bg2 {[%clk 0:02:36.9]} 6... Bb7 {[%clk 0:02:55.7]} 7.
Bxb4 {[%clk 0:02:31.8]} 7... cxb4 {[%clk 0:02:55.3]} 8. a3 {[%clk 0:02:32.5]}
8... bxa3 {[%clk 0:02:51.6]} 9. Nxa3 {[%clk 0:02:33.4]} 9... O-O {[%clk
0:02:51.8]} 10. O-O {[%clk 0:02:33.1]} 10... d5 {[%clk 0:02:49.5]} 11. Ne5
{[%clk 0:02:22.1]} 11... Nbd7 {[%clk 0:02:25.5]} 12. Nd3 {[%clk 0:02:00.3]}
12... Qe7 {[%clk 0:02:00.1]} 13. Qa4 {[%clk 0:01:39.9]} 13... Rfc8 {[%clk
0:01:46.3]} 14. Rac1 {[%clk 0:01:35.5]} 14... Bc6 {[%clk 0:01:31.5]} 15. Qb4
{[%clk 0:01:33.4]} 15... Kf8 {[%clk 0:01:31.6]} 16. cxd5 {[%clk 0:00:50.8]}
16... Bxd5 {[%clk 0:01:26.1]} 17. Nb5 {[%clk 0:00:47.3]} 17... Bxg2 {[%clk
0:01:23.6]} 18. Kxg2 {[%clk 0:00:48.2]} 18... a5 {[%clk 0:00:52.8]} 19. Qa3
{[%clk 0:00:27.1]} 19... Ne4 {[%clk 0:00:46.5]} 20. Rfd1 {[%clk 0:00:23.1]}
20... Qxa3 {[%clk 0:00:39.9]} 21. bxa3 {[%clk 0:00:24]} 21... Ke7 {[%clk
0:00:40.2]} 22. Ne5 {[%clk 0:00:24.1]} 22... Rxc1 {[%clk 0:00:33.7]} 23. Rxc1
{[%clk 0:00:24]} 23... Nxe5 {[%clk 0:00:34.6]} 24. dxe5 {[%clk 0:00:24.9]} 24...
Nc5 {[%clk 0:00:35.5]} 25. Nd6 {[%clk 0:00:23.7]} 25... f6 {[%clk 0:00:30.5]}
26. Nc4 {[%clk 0:00:23.7]} 26... Nd7 {[%clk 0:00:27.7]} 27. Rb1 {[%clk
0:00:23.6]} 27... Rc8 {[%clk 0:00:22.3]} 28. exf6+ {[%clk 0:00:14.8]} 28... gxf6
{[%clk 0:00:23.2]} 29. Ne3 {[%clk 0:00:15.1]} 29... Rc3 {[%clk 0:00:18.7]} 30.
Ra1 {[%clk 0:00:11.6]} 30... Nc5 {[%clk 0:00:17.3]} 31. Rb1 {[%clk 0:00:10.9]}
31... Na4 {[%clk 0:00:16.1]} 32. Ra1 {[%clk 0:00:08.9]} 32... Kd6 {[%clk
0:00:15.8]} 33. g4 {[%clk 0:00:08.1]} 33... b5 {[%clk 0:00:14]} 34. h4 {[%clk
0:00:06.4]} 34... Rb3 {[%clk 0:00:11.6]} 35. Kf3 {[%clk 0:00:05.5]} 35... Nc3
{[%clk 0:00:10.9]} 36. g5 {[%clk 0:00:04.2]} 36... f5 {[%clk 0:00:06.1]} 37. h5
{[%clk 0:00:03]} 37... Ke7 {[%clk 0:00:05.9]} 38. Kf4 {[%clk 0:00:01.2]} 38...
Nxe2+ {[%clk 0:00:05.3]} 39. Ke5 {[%clk 0:00:01.8]} 39... Rc3 {[%clk 0:00:05]}
40. g6 {[%clk 0:00:01.8]} 40... Rc5+ {[%clk 0:00:04.9]} 0-1

[Event "*** SCC Grand Prix: Titled Tuesday Blitz"]
[Site "Chess.com"]
[Date "2020.09.08"]
[Round "9"]
[White "GM_dmitrij"]
[Black "swimmerchess"]
[Result "1-0"]
[WhiteElo "2928"]
[BlackElo "2855"]
[TimeControl "180+1"]
[EndTime "11:47:26 PDT"]
[Termination "GM_dmitrij won by resignation"]

1. c4 {[%clk 0:03:00.9]} 1... Nf6 {[%clk 0:02:59.3]} 2. Nc3 {[%clk 0:03:00.4]}
2... g6 {[%clk 0:02:59.9]} 3. d4 {[%clk 0:02:58.4]} 3... Bg7 {[%clk 0:03:00.2]}
4. e4 {[%clk 0:02:58.7]} 4... O-O {[%clk 0:03:00.7]} 5. Be2 {[%clk 0:02:59.1]}
5... d6 {[%clk 0:03:01.3]} 6. Be3 {[%clk 0:02:59.3]} 6... e5 {[%clk 0:03:01.8]}
7. d5 {[%clk 0:02:59.1]} 7... Na6 {[%clk 0:03:02.4]} 8. g4 {[%clk 0:02:59]} 8...
Nc5 {[%clk 0:03:03]} 9. f3 {[%clk 0:02:55.8]} 9... h5 {[%clk 0:03:03.6]} 10. g5
{[%clk 0:02:55.2]} 10... Nh7 {[%clk 0:03:04.2]} 11. Qd2 {[%clk 0:02:51.5]} 11...
f6 {[%clk 0:03:03.5]} 12. gxf6 {[%clk 0:02:50.4]} 12... Bxf6 {[%clk 0:03:04.4]}
13. O-O-O {[%clk 0:02:47.7]} 13... Bg5 {[%clk 0:03:04.6]} 14. Kb1 {[%clk
0:02:35.6]} 14... Bxe3 {[%clk 0:03:04.2]} 15. Qxe3 {[%clk 0:02:36.5]} 15... Qg5
{[%clk 0:03:04.5]} 16. Qf2 {[%clk 0:02:34.1]} 16... Bd7 {[%clk 0:02:56.7]} 17.
h4 {[%clk 0:02:33.9]} 17... Qf4 {[%clk 0:02:56.6]} 18. Qg2 {[%clk 0:02:33.3]}
18... Kg7 {[%clk 0:02:53.7]} 19. Rf1 {[%clk 0:02:17.6]} 19... Rf6 {[%clk
0:02:24]} 20. Bd1 {[%clk 0:02:17.4]} 20... Raf8 {[%clk 0:02:05]} 21. Bc2 {[%clk
0:02:15.8]} 21... Qe3 {[%clk 0:01:49.9]} 22. Rh2 {[%clk 0:02:01.1]} 22... Bg4
{[%clk 0:01:42.3]} 23. Qf2 {[%clk 0:01:51.7]} 23... Qxf2 {[%clk 0:01:19.6]} 24.
Rhxf2 {[%clk 0:01:52.6]} 24... g5 {[%clk 0:01:20.5]} 25. b4 {[%clk 0:01:10.8]}
25... Na6 {[%clk 0:01:16]} 26. a3 {[%clk 0:00:51.3]} 26... gxh4 {[%clk
0:01:16.2]} 27. Rh2 {[%clk 0:00:50.5]} 27... Ng5 {[%clk 0:01:06.9]} 28. Rxh4
{[%clk 0:00:50.1]} 28... Nxf3 {[%clk 0:01:06.5]} 29. Nxf3 {[%clk 0:00:48]} 29...
Rxf3 {[%clk 0:01:07.4]} 30. Rxf3 {[%clk 0:00:48.3]} 30... Rxf3 {[%clk
0:01:07.7]} 31. Kb2 {[%clk 0:00:48.8]} 31... Rh3 {[%clk 0:00:57.8]} 32. Rxh3
{[%clk 0:00:47.4]} 32... Bxh3 {[%clk 0:00:58.7]} 33. Kc1 {[%clk 0:00:42.9]}
33... Bg2 {[%clk 0:00:56.5]} 34. Kd2 {[%clk 0:00:40.9]} 34... Kg6 {[%clk
0:00:44.6]} 35. Ke3 {[%clk 0:00:40.8]} 35... c6 {[%clk 0:00:37]} 36. dxc6 {[%clk
0:00:31.7]} 36... bxc6 {[%clk 0:00:37.9]} 37. Ba4 {[%clk 0:00:32.4]} 37... Nb8
{[%clk 0:00:37.1]} 38. b5 {[%clk 0:00:26.8]} 38... c5 {[%clk 0:00:36.2]} 39. Bd1
{[%clk 0:00:20.5]} 39... Nd7 {[%clk 0:00:32.2]} 40. a4 {[%clk 0:00:19.9]} 40...
h4 {[%clk 0:00:24]} 41. a5 {[%clk 0:00:17.9]} 41... h3 {[%clk 0:00:21.2]} 42.
Kf2 {[%clk 0:00:18.3]} 42... Nf6 {[%clk 0:00:16.6]} 43. Bf3 {[%clk 0:00:12.7]}
43... Bxf3 {[%clk 0:00:05]} 44. Kxf3 {[%clk 0:00:13.6]} 44... Ne8 {[%clk
0:00:02.1]} 45. Nd5 {[%clk 0:00:13.4]} 45... Kf7 {[%clk 0:00:01.5]} 46. b6
{[%clk 0:00:12.9]} 46... axb6 {[%clk 0:00:02.4]} 47. a6 {[%clk 0:00:13.4]} 1-0

[Event "*** SCC Grand Prix: Titled Tuesday Blitz"]
[Site "Chess.com"]
[Date "2020.09.08"]
[Round "9"]
[White "penguingm1"]
[Black "Dr-Bassem"]
[Result "1-0"]
[WhiteElo "2949"]
[BlackElo "2770"]
[TimeControl "180+1"]
[EndTime "11:47:27 PDT"]
[Termination "penguingm1 won on time"]

1. d4 {[%clk 0:03:00.9]} 1... e6 {[%clk 0:02:53.3]} 2. Bf4 {[%clk 0:02:56.5]}
2... f5 {[%clk 0:02:52.5]} 3. Nf3 {[%clk 0:02:56.3]} 3... Nf6 {[%clk 0:02:52.9]}
4. c4 {[%clk 0:02:55.3]} 4... Bb4+ {[%clk 0:02:51.5]} 5. Nc3 {[%clk 0:02:55.4]}
5... O-O {[%clk 0:02:50.4]} 6. e3 {[%clk 0:02:53.9]} 6... b6 {[%clk 0:02:50.4]}
7. Qb3 {[%clk 0:02:53.4]} 7... a5 {[%clk 0:02:48.4]} 8. Be2 {[%clk 0:02:51.5]}
8... Ne4 {[%clk 0:02:34.4]} 9. h4 {[%clk 0:02:41.4]} 9... Bb7 {[%clk 0:02:28.9]}
10. O-O {[%clk 0:02:38.7]} 10... Bxc3 {[%clk 0:02:20.6]} 11. bxc3 {[%clk
0:02:39.6]} 11... Nc6 {[%clk 0:02:12.9]} 12. c5 {[%clk 0:02:18.3]} 12... a4
{[%clk 0:02:12.8]} 13. Qb2 {[%clk 0:02:17.6]} 13... a3 {[%clk 0:02:12.1]} 14.
Qb3 {[%clk 0:02:15.9]} 14... Na5 {[%clk 0:02:01.2]} 15. Qxa3 {[%clk 0:02:02.2]}
15... bxc5 {[%clk 0:01:59.7]} 16. dxc5 {[%clk 0:01:45.3]} 16... Bd5 {[%clk
0:01:57.1]} 17. Qb4 {[%clk 0:01:38.1]} 17... Nc6 {[%clk 0:01:41.6]} 18. Qb2
{[%clk 0:01:36.3]} 18... Qf6 {[%clk 0:01:41.9]} 19. Rfc1 {[%clk 0:01:34.9]}
19... Rfb8 {[%clk 0:01:37.1]} 20. Qc2 {[%clk 0:01:34.5]} 20... Ra3 {[%clk
0:01:15.5]} 21. c4 {[%clk 0:00:56.9]} 21... Nb4 {[%clk 0:01:08.2]} 22. Qd1
{[%clk 0:00:42]} 22... Bc6 {[%clk 0:01:03.3]} 23. Bxc7 {[%clk 0:00:40]} 23...
Rba8 {[%clk 0:01:00.2]} 24. Be5 {[%clk 0:00:40.3]} 24... Qg6 {[%clk 0:00:58.8]}
25. Bb2 {[%clk 0:00:38.1]} 25... Rxa2 {[%clk 0:00:51.6]} 26. Ne5 {[%clk
0:00:37.5]} 26... Qf6 {[%clk 0:00:36.5]} 27. Bd4 {[%clk 0:00:36.2]} 27... Qxh4
{[%clk 0:00:34.6]} 28. Qe1 {[%clk 0:00:16.3]} 28... Nc2 {[%clk 0:00:27.8]} 29.
Nf3 {[%clk 0:00:08.9]} 29... Qd8 {[%clk 0:00:15.9]} 30. Rxa2 {[%clk 0:00:08.5]}
30... Nxe1 {[%clk 0:00:14.8]} 31. Rxa8 {[%clk 0:00:08.6]} 31... Nxf3+ {[%clk
0:00:14.8]} 32. gxf3 {[%clk 0:00:06]} 32... Bxa8 {[%clk 0:00:14.1]} 33. fxe4
{[%clk 0:00:06.9]} 33... Bxe4 {[%clk 0:00:12.7]} 34. f3 {[%clk 0:00:06.8]} 34...
Bc6 {[%clk 0:00:12.6]} 35. Kf2 {[%clk 0:00:04.5]} 35... Qh4+ {[%clk 0:00:12.9]}
36. Kg2 {[%clk 0:00:04.9]} 36... f4 {[%clk 0:00:08.4]} 37. exf4 {[%clk
0:00:02.3]} 37... Qxf4 {[%clk 0:00:08.6]} 38. Rd1 {[%clk 0:00:02.9]} 38... g5
{[%clk 0:00:08.1]} 39. Bf2 {[%clk 0:00:01.7]} 39... g4 {[%clk 0:00:07.8]} 40.
Rd3 {[%clk 0:00:01.8]} 40... h5 {[%clk 0:00:06.3]} 41. Bg3 {[%clk 0:00:01.9]}
41... Qf5 {[%clk 0:00:04.2]} 42. Re3 {[%clk 0:00:02.4]} 42... gxf3+ {[%clk
0:00:04]} 43. Bxf3 {[%clk 0:00:03.3]} 43... Qg4 {[%clk 0:00:02.6]} 44. Kf2
{[%clk 0:00:02.8]} 44... Bxf3 {[%clk 0:00:01.8]} 45. Rxf3 {[%clk 0:00:03.7]} 1-0

[Event "*** SCC Grand Prix: Titled Tuesday Blitz"]
[Site "Chess.com"]
[Date "2020.09.08"]
[Round "9"]
[White "Maghalashvili"]
[Black "Mr_Sinigami"]
[Result "1/2-1/2"]
[WhiteElo "2724"]
[BlackElo "2564"]
[TimeControl "180+1"]
[EndTime "11:47:27 PDT"]
[Termination "Game drawn by repetition"]

1. Nf3 {[%clk 0:03:00.9]} 1... Nf6 {[%clk 0:02:59.1]} 2. g3 {[%clk 0:03:01.8]}
2... g6 {[%clk 0:02:58.5]} 3. Bg2 {[%clk 0:03:02.7]} 3... Bg7 {[%clk 0:02:59.3]}
4. O-O {[%clk 0:03:02.6]} 4... O-O {[%clk 0:02:59.8]} 5. c3 {[%clk 0:03:03.5]}
5... d6 {[%clk 0:02:57.7]} 6. d4 {[%clk 0:03:04.4]} 6... Nbd7 {[%clk 0:02:56.8]}
7. Nbd2 {[%clk 0:03:05.3]} 7... e5 {[%clk 0:02:51]} 8. e4 {[%clk 0:03:06.2]}
8... Qe7 {[%clk 0:02:48.3]} 9. Re1 {[%clk 0:03:06.8]} 9... b6 {[%clk 0:02:44.5]}
10. a4 {[%clk 0:03:06.6]} 10... a5 {[%clk 0:02:43]} 11. Nc4 {[%clk 0:03:04.8]}
11... Bb7 {[%clk 0:02:42]} 12. dxe5 {[%clk 0:02:57.7]} 12... dxe5 {[%clk
0:02:40.5]} 13. b3 {[%clk 0:02:56.4]} 13... Rfd8 {[%clk 0:02:37.5]} 14. Qc2
{[%clk 0:02:53.9]} 14... Nc5 {[%clk 0:02:08.7]} 15. Nfxe5 {[%clk 0:02:46.9]}
15... Nfxe4 {[%clk 0:01:53]} 16. Ba3 {[%clk 0:02:31.4]} 16... f5 {[%clk
0:01:43.1]} 17. Bxc5 {[%clk 0:02:26.6]} 17... Qxc5 {[%clk 0:01:37.7]} 18. Nd3
{[%clk 0:02:20.9]} 18... Qf8 {[%clk 0:01:34.9]} 19. Nf4 {[%clk 0:02:16.3]} 19...
Re8 {[%clk 0:01:26.3]} 20. Re3 {[%clk 0:02:12.7]} 20... Qf7 {[%clk 0:01:11.8]}
21. Rae1 {[%clk 0:02:12.3]} 21... Rad8 {[%clk 0:00:54]} 22. h4 {[%clk
0:02:05.1]} 22... Ba8 {[%clk 0:00:46.3]} 23. Kh2 {[%clk 0:02:00.1]} 23... Nxc3
{[%clk 0:00:44.8]} 24. Ne6 {[%clk 0:01:43]} 24... Be4 {[%clk 0:00:34.9]} 25.
Nxd8 {[%clk 0:01:35.9]} 25... Rxd8 {[%clk 0:00:34.7]} 26. Bxe4 {[%clk
0:01:34.5]} 26... Nxe4 {[%clk 0:00:32.6]} 27. f3 {[%clk 0:01:30.8]} 27... Nc5
{[%clk 0:00:10.4]} 28. Re7 {[%clk 0:01:30]} 28... Qf6 {[%clk 0:00:10.6]} 29. Qe2
{[%clk 0:01:18.7]} 29... f4 {[%clk 0:00:09.8]} 30. Re8+ {[%clk 0:01:16.5]} 30...
Rxe8 {[%clk 0:00:09.7]} 31. Qxe8+ {[%clk 0:01:17.4]} 31... Bf8 {[%clk
0:00:10.5]} 32. Qe5 {[%clk 0:01:13.3]} 32... fxg3+ {[%clk 0:00:09.8]} 33. Kxg3
{[%clk 0:01:10.4]} 33... Qf7 {[%clk 0:00:09.8]} 34. Qe8 {[%clk 0:01:04.3]} 34...
Qf6 {[%clk 0:00:08.7]} 35. Ne5 {[%clk 0:01:00.4]} 35... Kg7 {[%clk 0:00:05.7]}
36. f4 {[%clk 0:00:59.9]} 36... Bd6 {[%clk 0:00:05.4]} 37. Qc8 {[%clk
0:00:46.1]} 37... Ne6 {[%clk 0:00:04.9]} 38. Qd7+ {[%clk 0:00:42.4]} 38... Kg8
{[%clk 0:00:05.1]} 39. Qe8+ {[%clk 0:00:41.7]} 39... Kg7 {[%clk 0:00:05.3]} 40.
Qd7+ {[%clk 0:00:39.6]} 40... Kg8 {[%clk 0:00:05.4]} 41. Re4 {[%clk 0:00:33.9]}
41... Nxf4 {[%clk 0:00:05.1]} 42. Qe8+ {[%clk 0:00:31]} 42... Kg7 {[%clk
0:00:05.1]} 43. Qd7+ {[%clk 0:00:25.5]} 43... Kg8 {[%clk 0:00:04.6]} 44. Qe8+
{[%clk 0:00:17.9]} 44... Kg7 {[%clk 0:00:04.9]} 45. Qd7+ {[%clk 0:00:08.3]}
45... Kg8 {[%clk 0:00:04.5]} 1/2-1/2

[Event "*** SCC Grand Prix: Titled Tuesday Blitz"]
[Site "Chess.com"]
[Date "2020.09.08"]
[Round "9"]
[White "WinstonSilvakov"]
[Black "Kazmin_Dmitrij"]
[Result "1-0"]
[WhiteElo "2140"]
[BlackElo "2258"]
[TimeControl "180+1"]
[EndTime "11:47:28 PDT"]
[Termination "WinstonSilvakov won on time"]

1. d4 {[%clk 0:03:00.9]} 1... f5 {[%clk 0:02:54.3]} 2. e4 {[%clk 0:02:59.4]}
2... fxe4 {[%clk 0:02:53.5]} 3. Nc3 {[%clk 0:03:00.3]} 3... Nf6 {[%clk
0:02:45.5]} 4. Bg5 {[%clk 0:03:00.8]} 4... Nc6 {[%clk 0:02:40.2]} 5. Bxf6 {[%clk
0:02:57.6]} 5... exf6 {[%clk 0:02:29.8]} 6. d5 {[%clk 0:02:53.6]} 6... Ne5
{[%clk 0:02:28.4]} 7. Nxe4 {[%clk 0:02:52.3]} 7... f5 {[%clk 0:02:28.4]} 8. Nc3
{[%clk 0:02:50.4]} 8... Bc5 {[%clk 0:01:58.3]} 9. Nf3 {[%clk 0:02:36]} 9...
Nxf3+ {[%clk 0:01:51.4]} 10. Qxf3 {[%clk 0:02:35.3]} 10... O-O {[%clk
0:01:49.6]} 11. O-O-O {[%clk 0:02:35.6]} 11... d6 {[%clk 0:01:43.1]} 12. Bd3
{[%clk 0:02:34.3]} 12... a6 {[%clk 0:01:32.4]} 13. h3 {[%clk 0:02:29]} 13... b5
{[%clk 0:01:29.5]} 14. Rhe1 {[%clk 0:02:27]} 14... b4 {[%clk 0:01:26.6]} 15. Ne2
{[%clk 0:02:27.1]} 15... a5 {[%clk 0:01:15.3]} 16. Nf4 {[%clk 0:02:26.2]} 16...
Qf6 {[%clk 0:01:10.1]} 17. Ne6 {[%clk 0:02:24.5]} 17... Bxe6 {[%clk 0:01:03.3]}
18. Rxe6 {[%clk 0:02:25.4]} 18... Qg5+ {[%clk 0:01:02]} 19. Kb1 {[%clk
0:02:23.7]} 19... a4 {[%clk 0:00:58.1]} 20. Bc4 {[%clk 0:02:15.5]} 20... a3
{[%clk 0:00:49.3]} 21. Rde1 {[%clk 0:02:01.4]} 21... axb2 {[%clk 0:00:46]} 22.
Re7 {[%clk 0:01:53.5]} 22... Ra3 {[%clk 0:00:39.5]} 23. Qe2 {[%clk 0:01:47.5]}
23... h6 {[%clk 0:00:24.9]} 24. Qe6+ {[%clk 0:01:43.2]} 24... Kh7 {[%clk
0:00:22.8]} 25. Bd3 {[%clk 0:01:41.8]} 25... Rxd3 {[%clk 0:00:22.5]} 26. cxd3
{[%clk 0:01:37.9]} 26... Qd2 {[%clk 0:00:20]} 27. Qe2 {[%clk 0:01:30.1]} 27...
Qxe2 {[%clk 0:00:15.7]} 28. R7xe2 {[%clk 0:01:25.5]} 28... Bd4 {[%clk
0:00:15.7]} 29. Re7 {[%clk 0:01:20.5]} 29... Bc3 {[%clk 0:00:11.3]} 30. R1e2
{[%clk 0:01:17.5]} 30... f4 {[%clk 0:00:11.3]} 31. f3 {[%clk 0:01:16]} 31... Rc8
{[%clk 0:00:08.9]} 32. Rf7 {[%clk 0:01:12.7]} 32... c6 {[%clk 0:00:07.5]} 33.
Rxb2 {[%clk 0:01:06.5]} 33... Bxb2 {[%clk 0:00:06.4]} 34. Kxb2 {[%clk
0:01:07.4]} 34... cxd5 {[%clk 0:00:06.5]} 35. Rxf4 {[%clk 0:01:07]} 35... Rc3
{[%clk 0:00:05.8]} 36. Rd4 {[%clk 0:01:05.9]} 36... Rc5 {[%clk 0:00:06.4]} 37.
Rxb4 {[%clk 0:01:05.3]} 37... Ra5 {[%clk 0:00:04.8]} 38. a4 {[%clk 0:01:04.3]}
38... Kg6 {[%clk 0:00:04.8]} 39. Kb3 {[%clk 0:01:04.8]} 39... Kf6 {[%clk
0:00:04.8]} 40. Rb5 {[%clk 0:01:05.2]} 40... Ra6 {[%clk 0:00:03.5]} 41. Rxd5
{[%clk 0:01:04.8]} 41... Ke6 {[%clk 0:00:04.1]} 42. Rb5 {[%clk 0:01:04.2]} 42...
d5 {[%clk 0:00:03]} 43. Kc3 {[%clk 0:01:00.7]} 43... Ke5 {[%clk 0:00:02.4]} 44.
g3 {[%clk 0:00:54.1]} 44... Rxa4 {[%clk 0:00:02.3]} 45. f4+ {[%clk 0:00:50.3]}
45... Kd6 {[%clk 0:00:02.2]} 46. Rb7 {[%clk 0:00:43.2]} 46... Ra1 {[%clk
0:00:01.7]} 47. Rxg7 {[%clk 0:00:42.1]} 47... Rg1 {[%clk 0:00:01.1]} 48. g4
{[%clk 0:00:36.6]} 48... Kc5 {[%clk 0:00:01.4]} 49. Rc7+ {[%clk 0:00:35]} 49...
Kb5 {[%clk 0:00:01.4]} 50. Kd4 {[%clk 0:00:30.6]} 50... Rg3 {[%clk 0:00:01.9]}
51. f5 {[%clk 0:00:27.2]} 51... Rxh3 {[%clk 0:00:01.3]} 52. Rc5+ {[%clk
0:00:27.4]} 1-0

[Event "*** SCC Grand Prix: Titled Tuesday Blitz"]
[Site "Chess.com"]
[Date "2020.09.08"]
[Round "9"]
[White "Vsevolod_Ovchinnikov"]
[Black "Chessdreamer2020"]
[Result "1-0"]
[WhiteElo "2567"]
[BlackElo "2390"]
[TimeControl "180+1"]
[EndTime "11:47:30 PDT"]
[Termination "Vsevolod_Ovchinnikov won by resignation"]

1. d4 {[%clk 0:03:00.9]} 1... d6 {[%clk 0:02:57.2]} 2. Nf3 {[%clk 0:03:00.5]}
2... g6 {[%clk 0:02:56.9]} 3. c4 {[%clk 0:02:58.5]} 3... Bg7 {[%clk 0:02:57]} 4.
h3 {[%clk 0:02:58]} 4... e5 {[%clk 0:02:56.8]} 5. Bg5 {[%clk 0:02:54.7]} 5...
Ne7 {[%clk 0:02:51.7]} 6. dxe5 {[%clk 0:02:53]} 6... dxe5 {[%clk 0:02:51.6]} 7.
Qxd8+ {[%clk 0:02:53.1]} 7... Kxd8 {[%clk 0:02:51.8]} 8. Nc3 {[%clk 0:02:53.2]}
8... f6 {[%clk 0:02:51.7]} 9. O-O-O+ {[%clk 0:02:52.8]} 9... Nd7 {[%clk
0:02:49.5]} 10. Bd2 {[%clk 0:02:37.7]} 10... c6 {[%clk 0:02:49.1]} 11. g4 {[%clk
0:02:33.1]} 11... Kc7 {[%clk 0:02:48.8]} 12. b3 {[%clk 0:02:26.1]} 12... Nc5
{[%clk 0:02:48.3]} 13. Be3 {[%clk 0:02:20.7]} 13... Ne6 {[%clk 0:02:36.9]} 14.
h4 {[%clk 0:02:20.4]} 14... h5 {[%clk 0:02:22.4]} 15. gxh5 {[%clk 0:02:16.3]}
15... Rxh5 {[%clk 0:02:22.3]} 16. Rg1 {[%clk 0:02:16.7]} 16... Bd7 {[%clk
0:02:18.4]} 17. Bh3 {[%clk 0:02:05]} 17... Bh6 {[%clk 0:02:05.5]} 18. Rxd7+
{[%clk 0:01:51.4]} 18... Kxd7 {[%clk 0:02:04.7]} 19. Rd1+ {[%clk 0:01:52]} 19...
Kc7 {[%clk 0:02:01.4]} 20. Bxe6 {[%clk 0:01:49.7]} 20... Bxe3+ {[%clk 0:02:01]}
21. fxe3 {[%clk 0:01:50.6]} 21... Rd8 {[%clk 0:02:00.3]} 22. Rxd8 {[%clk
0:01:50.5]} 22... Kxd8 {[%clk 0:02:00.9]} 23. Ne4 {[%clk 0:01:48.3]} 23... f5
{[%clk 0:01:50.7]} 24. Nf6 {[%clk 0:01:27.9]} 24... Rh8 {[%clk 0:01:50.3]} 25.
Nxe5 {[%clk 0:01:26.1]} 25... Rxh4 {[%clk 0:01:49.1]} 26. c5 {[%clk 0:01:16.2]}
26... b6 {[%clk 0:01:37.4]} 27. Nf7+ {[%clk 0:01:09.2]} 27... Kc7 {[%clk
0:01:34.3]} 28. Ne8+ {[%clk 0:01:09.3]} 28... Kb7 {[%clk 0:01:34.3]} 29. Nd8+
{[%clk 0:00:56.1]} 29... Ka6 {[%clk 0:01:30.6]} 30. Bc4+ {[%clk 0:00:48.8]}
30... Ka5 {[%clk 0:01:22.4]} 31. cxb6 {[%clk 0:00:44.7]} 31... axb6 {[%clk
0:01:20]} 32. Nd6 {[%clk 0:00:40.1]} 32... b5 {[%clk 0:01:17.6]} 33. Bd3 {[%clk
0:00:37]} 33... Kb4 {[%clk 0:01:15.7]} 34. Kb2 {[%clk 0:00:33.8]} 34... Kc5
{[%clk 0:01:11.7]} 35. N6f7 {[%clk 0:00:30.6]} 35... Nd5 {[%clk 0:00:50.6]} 36.
Ne6+ {[%clk 0:00:27.1]} 36... Kb6 {[%clk 0:00:48.9]} 37. Ne5 {[%clk 0:00:25.5]}
37... Ne7 {[%clk 0:00:45.6]} 38. a3 {[%clk 0:00:23.2]} 38... Rh3 {[%clk
0:00:41.4]} 39. Nf4 {[%clk 0:00:17.4]} 39... Rxe3 {[%clk 0:00:39.7]} 40. Nexg6
{[%clk 0:00:17.2]} 40... Nxg6 {[%clk 0:00:38.2]} 41. Nxg6 {[%clk 0:00:18.1]}
41... c5 {[%clk 0:00:33.5]} 42. Nf4 {[%clk 0:00:17.5]} 42... Re5 {[%clk
0:00:31.8]} 43. Kc3 {[%clk 0:00:16.3]} 43... Ka5 {[%clk 0:00:28.8]} 44. b4+
{[%clk 0:00:16.1]} 44... cxb4+ {[%clk 0:00:28.3]} 45. axb4+ {[%clk 0:00:17]}
45... Kb6 {[%clk 0:00:28.8]} 46. Kd4 {[%clk 0:00:16.8]} 46... Re8 {[%clk
0:00:22.4]} 47. Bxf5 {[%clk 0:00:17.1]} 47... Rd8+ {[%clk 0:00:22.6]} 48. Nd5+
{[%clk 0:00:17.2]} 48... Kc6 {[%clk 0:00:22.2]} 49. e4 {[%clk 0:00:17.7]} 49...
Ra8 {[%clk 0:00:17.8]} 50. e5 {[%clk 0:00:15.7]} 50... Ra1 {[%clk 0:00:17.4]}
51. Nc3 {[%clk 0:00:10.5]} 51... Rb1 {[%clk 0:00:15.9]} 52. Bxb1 {[%clk
0:00:09.6]} 1-0

[Event "*** SCC Grand Prix: Titled Tuesday Blitz"]
[Site "Chess.com"]
[Date "2020.09.08"]
[Round "9"]
[White "Paladin61"]
[Black "dopolian"]
[Result "1-0"]
[WhiteElo "2647"]
[BlackElo "2490"]
[TimeControl "180+1"]
[EndTime "11:47:32 PDT"]
[Termination "Paladin61 won on time"]

1. b3 {[%clk 0:02:58.3]} 1... Nf6 {[%clk 0:02:58.6]} 2. Bb2 {[%clk 0:02:58.8]}
2... g6 {[%clk 0:02:56.3]} 3. Bxf6 {[%clk 0:02:56.1]} 3... exf6 {[%clk
0:02:57.2]} 4. c4 {[%clk 0:02:55.7]} 4... Bg7 {[%clk 0:02:57.1]} 5. Nc3 {[%clk
0:02:55.7]} 5... O-O {[%clk 0:02:56]} 6. g3 {[%clk 0:02:55.1]} 6... f5 {[%clk
0:02:54.9]} 7. Rc1 {[%clk 0:02:54.7]} 7... c6 {[%clk 0:02:54.5]} 8. Bg2 {[%clk
0:02:54.8]} 8... Re8 {[%clk 0:02:50.5]} 9. e3 {[%clk 0:02:54.4]} 9... Qa5 {[%clk
0:02:42.9]} 10. Nge2 {[%clk 0:02:54]} 10... d6 {[%clk 0:02:41.8]} 11. O-O {[%clk
0:02:50]} 11... Nd7 {[%clk 0:02:41.8]} 12. d4 {[%clk 0:02:48.9]} 12... Nf6
{[%clk 0:02:40.1]} 13. Qd3 {[%clk 0:02:48.1]} 13... Bd7 {[%clk 0:02:37]} 14. Rb1
{[%clk 0:02:46.3]} 14... Qc7 {[%clk 0:02:34]} 15. b4 {[%clk 0:02:44.5]} 15...
Rad8 {[%clk 0:02:28.3]} 16. a4 {[%clk 0:02:23]} 16... b6 {[%clk 0:02:23.5]} 17.
Rbc1 {[%clk 0:02:02.1]} 17... c5 {[%clk 0:02:17.3]} 18. b5 {[%clk 0:02:00.7]}
18... Bc8 {[%clk 0:02:07.9]} 19. Nf4 {[%clk 0:01:57.7]} 19... Bb7 {[%clk
0:02:02.6]} 20. Bxb7 {[%clk 0:01:52.9]} 20... Qxb7 {[%clk 0:02:02.2]} 21. Rfd1
{[%clk 0:01:51.6]} 21... Ne4 {[%clk 0:01:35.5]} 22. Nxe4 {[%clk 0:01:31.4]}
22... fxe4 {[%clk 0:01:28.9]} 23. Qe2 {[%clk 0:01:25.5]} 23... f5 {[%clk
0:01:21]} 24. dxc5 {[%clk 0:01:00.6]} 24... dxc5 {[%clk 0:01:02]} 25. Rxd8
{[%clk 0:00:57.1]} 25... Rxd8 {[%clk 0:01:02]} 26. Rd1 {[%clk 0:00:57.5]} 26...
Qe7 {[%clk 0:00:50.1]} 27. Rd2 {[%clk 0:00:41.9]} 27... Bf6 {[%clk 0:00:36.2]}
28. Nd5 {[%clk 0:00:35.3]} 28... Qf7 {[%clk 0:00:35]} 29. Qd1 {[%clk 0:00:35.3]}
29... Re8 {[%clk 0:00:30.7]} 30. a5 {[%clk 0:00:32.7]} 30... Re6 {[%clk
0:00:26.4]} 31. Ra2 {[%clk 0:00:25.2]} 31... Rd6 {[%clk 0:00:21.6]} 32. axb6
{[%clk 0:00:23.7]} 32... axb6 {[%clk 0:00:22.5]} 33. Ra6 {[%clk 0:00:18.6]}
33... Bd8 {[%clk 0:00:22.4]} 34. Ra8 {[%clk 0:00:14.2]} 34... Kg7 {[%clk
0:00:22.1]} 35. Qa1+ {[%clk 0:00:13.2]} 35... Kh6 {[%clk 0:00:13.5]} 36. Qh8
{[%clk 0:00:10.1]} 36... Rd7 {[%clk 0:00:08.6]} 37. Rxd8 {[%clk 0:00:07.7]}
37... Rxd8 {[%clk 0:00:05.2]} 38. Qxd8 {[%clk 0:00:06.5]} 38... Qa7 {[%clk
0:00:05]} 39. Qh4+ {[%clk 0:00:05.2]} 39... Kg7 {[%clk 0:00:04.6]} 40. Qe7+
{[%clk 0:00:06]} 40... Qxe7 {[%clk 0:00:04.3]} 41. Nxe7 {[%clk 0:00:06.3]} 1-0